[Event "2026 European Womens Championship"]
[Site "Batumi, GE"]
[Date "2026.06.01"]
[Round "7"]
[White "Purtseladze, Maka"]
[Black "Shuqja, Klean"]
[Result "1-0"]
[Board "91"]
[TimeControl "5400+30"]
[WhiteFideId "13602659"]
[BlackFideId "4701585"]
[WhiteElo "2237"]
[BlackElo "2092"]
[WhiteTitle "IM"]
[BlackTitle "WFM"]
[WhiteClock "0:33:44"]
[BlackClock "0:22:25"]
[Variant "Standard"]

1. d4 {[%clk 1:30:58]}  Nf6 {[%clk 1:29:56]} 2. c4 {[%clk 1:31:23]}  e6 {[%clk 1:30:17]} 3. Nf3 {[%clk 1:31:48]}  d5 {[%clk 1:30:39]}
4. Nc3 {[%clk 1:32:07]}  c5 {[%clk 1:31:08]} 5. cxd5 {[%clk 1:32:17]}  cxd4 {[%clk 1:31:35]} 6. Qxd4 {[%clk 1:29:49]}  exd5 {[%clk 1:32:02]}
7. Bg5 {[%clk 1:30:15]}  Be7 {[%clk 1:32:26]} 8. e3 {[%clk 1:30:41]}  O-O {[%clk 1:32:47]} 9. Be2 {[%clk 1:29:35]}  h6 {[%clk 1:33:01]}
10. Bh4 {[%clk 1:26:22]}  Nc6 {[%clk 1:33:24]} 11. Qd3 {[%clk 1:24:58]}  Qb6 {[%clk 1:31:27]} 12. O-O {[%clk 1:07:09]}  Qxb2 {[%clk 1:20:37]}
13. Rab1 {[%clk 1:05:03]}  Qa3 {[%clk 1:20:14]} 14. Bxf6 {[%clk 1:01:58]}  Bxf6 {[%clk 1:19:34]} 15. Nxd5 {[%clk 1:02:24]}  Qd6 {[%clk 1:07:11]}
16. Nxf6+ {[%clk 0:56:21]}  Qxf6 {[%clk 1:06:24]} 17. Qb5 {[%clk 0:55:13]}  b6 {[%clk 0:56:41]} 18. Rfd1 {[%clk 0:48:44]}  Bb7 {[%clk 0:50:34]}
19. Rd7 {[%clk 0:41:49]}  Na5 {[%clk 0:49:23]} 20. Qe5 {[%clk 0:41:58]}  Qxe5 {[%clk 0:46:48]} 21. Nxe5 {[%clk 0:42:23]}  Rae8 {[%clk 0:42:38]}
22. Nc4 {[%clk 0:26:17]}  Be4 {[%clk 0:32:42]} 23. Rbd1 {[%clk 0:26:30]}  Nxc4 {[%clk 0:32:05]} 24. Bxc4 {[%clk 0:26:55]}  Rc8 {[%clk 0:31:11]}
25. R1d4 {[%clk 0:13:29]}  Bf5 {[%clk 0:24:12]} 26. Rxa7 {[%clk 0:13:54]}  b5 {[%clk 0:21:32]} 27. Bf1 {[%clk 0:12:53]}  Rc1 {[%clk 0:17:45]}
28. g4 {[%clk 0:12:55]}  Be6 {[%clk 0:17:19]} 29. Kg2 {[%clk 0:13:10]}  Ra1 {[%clk 0:12:32]} 30. a3 {[%clk 0:10:56]}  Rb8 {[%clk 0:00:42]}
31. Rb4 {[%clk 0:07:48]}  Bd5+ {[%clk 0:01:04]} 32. e4 {[%clk 0:08:08]}  Be6 {[%clk 0:00:38]} 33. h3 {[%clk 0:06:07]}  Rc8 {[%clk 0:00:33]}
34. Bxb5 {[%clk 0:05:50]}  Rc3 {[%clk 0:00:33]} 35. a4 {[%clk 0:03:24]}  Ra2 {[%clk 0:00:58]} 36. Bd7 {[%clk 0:03:28]}  Rcc2 {[%clk 0:00:33]}
37. Bxe6 {[%clk 0:03:48]}  Rxf2+ {[%clk 0:01:01]} 38. Kg3 {[%clk 0:03:41]}  fxe6 {[%clk 0:00:57]} 39. Rb8+ {[%clk 0:02:48]}  Rf8 {[%clk 0:01:04]}
40. Rbb7 {[%clk 0:01:38]}  Ra3+ {[%clk 0:01:20]} 41. Kh4 {[%clk 0:01:48]}  g5+ {[%clk 0:24:42]} 42. Kh5 {[%clk 0:32:13]}  Rf6 {[%clk 0:24:52]}
43. Rb8+ {[%clk 0:32:37]}  Rf8 {[%clk 0:25:13]} 44. Rxf8+ {[%clk 0:32:57]}  Kxf8 {[%clk 0:25:42]} 45. Kxh6 {[%clk 0:33:19]}  Rxh3+ {[%clk 0:22:25]}
46. Kxg5 {[%clk 0:33:44]} 1-0

[Event "2026 European Womens Championship"]
[Site "Batumi, GE"]
[Date "2026.06.01"]
[Round "7"]
[White "Skarbarchuk, Tetyana"]
[Black "Ivekovic, Tihana"]
[Result "1-0"]
[Board "92"]
[TimeControl "5400+30"]
[WhiteFideId "14184494"]
[BlackFideId "14517825"]
[WhiteElo "2236"]
[BlackElo "2119"]
[BlackTitle "WFM"]
[WhiteClock "0:07:06"]
[BlackClock "0:01:31"]
[Variant "Standard"]

1. c4 {[%clk 1:30:27]}  e5 {[%clk 1:30:54]} 2. Nc3 {[%clk 1:30:41]}  Bb4 {[%clk 1:31:06]} 3. Nd5 {[%clk 1:30:58]}  Be7 {[%clk 1:31:21]}
4. d4 {[%clk 1:31:11]}  exd4 {[%clk 1:31:23]} 5. Qxd4 {[%clk 1:31:34]}  Nf6 {[%clk 1:31:32]} 6. Nxe7 {[%clk 1:31:26]}  Qxe7 {[%clk 1:31:55]}
7. Bg5 {[%clk 1:31:42]}  Nc6 {[%clk 1:31:48]} 8. Qc3 {[%clk 1:31:58]}  d6 {[%clk 1:31:34]} 9. Bxf6 {[%clk 1:30:07]}  Qxf6 {[%clk 1:31:49]}
10. Qxf6 {[%clk 1:30:31]}  gxf6 {[%clk 1:32:13]} 11. e3 {[%clk 1:29:43]}  a5 {[%clk 1:30:41]} 12. Ne2 {[%clk 1:23:56]}  Be6 {[%clk 1:24:36]}
13. Nf4 {[%clk 1:23:11]}  Nb4 {[%clk 1:22:23]} 14. Kd2 {[%clk 1:22:25]}  O-O-O {[%clk 1:11:03]} 15. Kc3 {[%clk 1:20:53]}  d5 {[%clk 1:05:41]}
16. a3 {[%clk 1:13:46]}  Nc6 {[%clk 1:06:04]} 17. cxd5 {[%clk 1:13:49]}  Bxd5 {[%clk 1:06:28]} 18. b4 {[%clk 1:04:09]}  Kb8 {[%clk 0:47:44]}
19. Be2 {[%clk 1:00:45]}  axb4+ {[%clk 0:37:06]} 20. axb4 {[%clk 1:01:07]}  Ne7 {[%clk 0:37:28]} 21. Rhd1 {[%clk 0:51:57]}  Bc6 {[%clk 0:33:47]}
22. Bc4 {[%clk 0:42:59]}  Ng6 {[%clk 0:31:09]} 23. b5 {[%clk 0:43:22]}  Nxf4 {[%clk 0:11:22]} 24. bxc6 {[%clk 0:43:36]}  Rxd1 {[%clk 0:11:48]}
25. Rxd1 {[%clk 0:44:01]}  Ne6 {[%clk 0:12:14]} 26. cxb7 {[%clk 0:20:41]}  Kxb7 {[%clk 0:12:03]} 27. Rd5 {[%clk 0:20:29]}  h5 {[%clk 0:08:28]}
28. h4 {[%clk 0:18:59]}  Kc6 {[%clk 0:07:51]} 29. Rf5 {[%clk 0:18:57]}  Rh6 {[%clk 0:09:10]} 30. Be2 {[%clk 0:17:48]}  Ng7 {[%clk 0:08:41]}
31. Ra5 {[%clk 0:18:11]}  Kd6 {[%clk 0:09:37]} 32. Ra6+ {[%clk 0:13:56]}  Ke7 {[%clk 0:09:25]} 33. g3 {[%clk 0:11:17]}  Rh8 {[%clk 0:09:17]}
34. Ra5 {[%clk 0:09:16]}  Kd6 {[%clk 0:08:19]} 35. Bf3 {[%clk 0:08:02]}  Rh6 {[%clk 0:06:41]} 36. Kc4 {[%clk 0:06:54]}  Kd7 {[%clk 0:06:44]}
37. Rd5+ {[%clk 0:03:53]}  Ke7 {[%clk 0:05:16]} 38. Rc5 {[%clk 0:04:09]}  Kd7 {[%clk 0:04:01]} 39. Bc6+ {[%clk 0:03:48]}  Kd6 {[%clk 0:02:36]}
40. Bf3 {[%clk 0:04:09]}  Kd7 {[%clk 0:02:53]} 41. Bc6+ {[%clk 0:23:57]}  Kd6 {[%clk 0:33:16]} 42. Ba4 {[%clk 0:24:21]}  Ne6 {[%clk 0:32:19]}
43. Rd5+ {[%clk 0:23:50]}  Ke7 {[%clk 0:32:43]} 44. Rd7+ {[%clk 0:24:10]}  Kf8 {[%clk 0:33:08]} 45. e4 {[%clk 0:23:03]}  Rg6 {[%clk 0:30:39]}
46. Bd1 {[%clk 0:23:15]}  Rh6 {[%clk 0:29:54]} 47. Rd5 {[%clk 0:22:08]}  Ng7 {[%clk 0:29:03]} 48. Rc5 {[%clk 0:22:07]}  f5 {[%clk 0:29:18]}
49. exf5 {[%clk 0:21:41]}  Rd6 {[%clk 0:27:19]} 50. Bb3 {[%clk 0:19:27]}  c6 {[%clk 0:24:29]} 51. Kc3 {[%clk 0:17:55]}  Ne8 {[%clk 0:18:05]}
52. Ba4 {[%clk 0:17:50]}  Rf6 {[%clk 0:10:29]} 53. Kd4 {[%clk 0:14:15]}  Nd6 {[%clk 0:02:20]} 54. Ke5 {[%clk 0:13:40]}  Kg7 {[%clk 0:01:38]}
55. Rxc6 {[%clk 0:07:38]}  Rxf5+ {[%clk 0:02:03]} 56. Kxd6 {[%clk 0:08:03]}  Rxf2 {[%clk 0:02:28]} 57. Rc3 {[%clk 0:07:12]}  Kf6 {[%clk 0:02:04]}
58. Bc2 {[%clk 0:06:32]}  Rd2+ {[%clk 0:01:54]} 59. Bd3 {[%clk 0:06:55]}  Rg2 {[%clk 0:02:15]} 60. Be4 {[%clk 0:07:13]}  Kg7 {[%clk 0:01:31]}
61. Bxg2 {[%clk 0:07:06]} 1-0

[Event "2026 European Womens Championship"]
[Site "Batumi, GE"]
[Date "2026.06.01"]
[Round "7"]
[White "Rapport, Jovana"]
[Black "Liavonava, Yuliya"]
[Result "1-0"]
[Board "93"]
[TimeControl "5400+30"]
[WhiteFideId "937266"]
[BlackFideId "13524178"]
[WhiteElo "2235"]
[BlackElo "2118"]
[WhiteTitle "WGM"]
[BlackTitle "WFM"]
[WhiteClock "0:14:01"]
[BlackClock "0:18:23"]
[Variant "Standard"]

1. e4 {[%clk 1:30:36]}  c5 {[%clk 1:30:51]} 2. Nc3 {[%clk 1:30:56]}  d6 {[%clk 1:31:14]} 3. g3 {[%clk 1:31:16]}  Nc6 {[%clk 1:31:23]}
4. Bg2 {[%clk 1:31:36]}  g6 {[%clk 1:31:48]} 5. d3 {[%clk 1:31:55]}  Bg7 {[%clk 1:32:13]} 6. f4 {[%clk 1:32:19]}  Rb8 {[%clk 1:29:50]}
7. a4 {[%clk 1:29:47]}  e6 {[%clk 1:25:57]} 8. Nf3 {[%clk 1:29:59]}  Nge7 {[%clk 1:26:16]} 9. h4 {[%clk 1:30:22]}  h5 {[%clk 1:25:40]}
10. O-O {[%clk 1:30:45]}  a6 {[%clk 1:24:32]} 11. Ng5 {[%clk 1:28:05]}  Nd4 {[%clk 1:13:23]} 12. Ne2 {[%clk 1:25:15]}  Ng8 {[%clk 1:06:20]}
13. c3 {[%clk 1:24:44]}  Nxe2+ {[%clk 1:06:02]} 14. Qxe2 {[%clk 1:25:10]}  Qe7 {[%clk 1:03:47]} 15. e5 {[%clk 1:10:54]}  d5 {[%clk 0:58:00]}
16. b4 {[%clk 1:07:40]}  cxb4 {[%clk 0:55:53]} 17. cxb4 {[%clk 1:06:47]}  Nh6 {[%clk 0:52:37]} 18. b5 {[%clk 0:54:19]}  O-O {[%clk 0:50:01]}
19. Ba3 {[%clk 0:53:52]}  Qd8 {[%clk 0:50:21]} 20. Bxf8 {[%clk 0:45:34]}  Bxf8 {[%clk 0:50:30]} 21. d4 {[%clk 0:46:01]}  Nf5 {[%clk 0:46:07]}
22. Qd3 {[%clk 0:44:26]}  axb5 {[%clk 0:45:40]} 23. axb5 {[%clk 0:44:10]}  Qb6 {[%clk 0:45:57]} 24. Ra4 {[%clk 0:42:26]}  Bd7 {[%clk 0:46:06]}
25. Rb1 {[%clk 0:42:49]}  Rc8 {[%clk 0:44:54]} 26. Kh2 {[%clk 0:42:35]}  Qc7 {[%clk 0:43:17]} 27. Nf3 {[%clk 0:39:56]}  Be7 {[%clk 0:38:30]}
28. Ne1 {[%clk 0:36:36]}  Bd8 {[%clk 0:31:45]} 29. Bh3 {[%clk 0:35:14]}  Ne7 {[%clk 0:31:58]} 30. g4 {[%clk 0:32:22]}  hxg4 {[%clk 0:31:36]}
31. Bxg4 {[%clk 0:32:51]}  Qb8 {[%clk 0:29:02]} 32. Ra2 {[%clk 0:28:22]}  Bb6 {[%clk 0:29:13]} 33. Rc2 {[%clk 0:24:10]}  Rf8 {[%clk 0:23:53]}
34. Rg2 {[%clk 0:24:02]}  Kg7 {[%clk 0:23:54]} 35. Kg1 {[%clk 0:14:16]}  Qc7 {[%clk 0:21:58]} 36. Rc2 {[%clk 0:11:53]}  Qd8 {[%clk 0:22:24]}
37. Nf3 {[%clk 0:11:20]}  Rh8 {[%clk 0:20:56]} 38. Kg2 {[%clk 0:11:15]}  Nc8 {[%clk 0:20:46]} 39. Kg3 {[%clk 0:03:55]}  Na7 {[%clk 0:20:49]}
40. Ng5 {[%clk 0:03:23]}  f6 {[%clk 0:12:23]} 41. Nf3 {[%clk 0:00:54]}  f5 {[%clk 0:12:27]} 42. Bh3 {[%clk 0:01:19]}  Qe7 {[%clk 0:10:08]}
43. Bf1 {[%clk 0:01:26]}  Ra8 {[%clk 0:09:19]} 44. Ra2 {[%clk 0:28:35]}  Rc8 {[%clk 0:39:41]} 45. Qb3 {[%clk 0:27:44]}  Rh8 {[%clk 0:30:22]}
46. Rba1 {[%clk 0:25:47]}  Nc8 {[%clk 0:30:44]} 47. Qb2 {[%clk 0:23:37]}  Bd8 {[%clk 0:28:01]} 48. Ng5 {[%clk 0:20:27]}  Nb6 {[%clk 0:28:25]}
49. Ra7 {[%clk 0:19:39]}  Bc8 {[%clk 0:28:49]} 50. Rc1 {[%clk 0:19:22]}  Kg8 {[%clk 0:25:11]} 51. Rc6 {[%clk 0:17:53]}  Qf8 {[%clk 0:25:11]}
52. Rxc8 {[%clk 0:15:12]}  Nxc8 {[%clk 0:23:38]} 53. Rxb7 {[%clk 0:15:40]}  Qh6 {[%clk 0:21:46]} 54. Qh2 {[%clk 0:15:20]}  Bxg5 {[%clk 0:21:43]}
55. fxg5 {[%clk 0:15:47]}  f4+ {[%clk 0:22:08]} 56. Kf3 {[%clk 0:13:28]}  Qh5+ {[%clk 0:19:32]} 57. Kf2 {[%clk 0:13:53]}  Qg4 {[%clk 0:18:23]}
58. Qh3 {[%clk 0:14:01]} 1-0

[Event "2026 European Womens Championship"]
[Site "Batumi, GE"]
[Date "2026.06.01"]
[Round "7"]
[White "Kubicka, Anna"]
[Black "Avetisyan, Ani"]
[Result "1-0"]
[Board "94"]
[TimeControl "5400+30"]
[WhiteFideId "1152254"]
[BlackFideId "13319035"]
[WhiteElo "2226"]
[BlackElo "2052"]
[WhiteTitle "WIM"]
[WhiteClock "0:02:09"]
[BlackClock "0:02:09"]
[Variant "Standard"]

1. e4 {[%clk 1:30:25]}  c5 {[%clk 1:30:57]} 2. Nf3 {[%clk 1:30:45]}  e6 {[%clk 1:31:22]} 3. d4 {[%clk 1:30:44]}  cxd4 {[%clk 1:31:39]}
4. Nxd4 {[%clk 1:31:08]}  Nc6 {[%clk 1:32:07]} 5. Nc3 {[%clk 1:31:16]}  Qc7 {[%clk 1:32:34]} 6. Qd3 {[%clk 1:31:02]}  Nf6 {[%clk 1:29:31]}
7. Be2 {[%clk 1:29:53]}  a6 {[%clk 1:23:56]} 8. Nxc6 {[%clk 1:30:17]}  bxc6 {[%clk 1:24:20]} 9. Qg3 {[%clk 1:30:31]}  Qxg3 {[%clk 1:23:26]}
10. hxg3 {[%clk 1:30:55]}  d5 {[%clk 1:23:53]} 11. Bf3 {[%clk 1:20:35]}  Rb8 {[%clk 1:11:54]} 12. g4 {[%clk 1:16:20]}  Bd6 {[%clk 1:08:44]}
13. g5 {[%clk 1:11:59]}  Nd7 {[%clk 1:08:34]} 14. Be2 {[%clk 0:52:08]}  Be5 {[%clk 1:04:56]} 15. f4 {[%clk 0:48:08]}  Bd4 {[%clk 1:01:07]}
16. e5 {[%clk 0:47:37]}  g6 {[%clk 0:51:31]} 17. Nd1 {[%clk 0:43:52]}  a5 {[%clk 0:50:21]} 18. a4 {[%clk 0:31:19]}  Kf8 {[%clk 0:46:28]}
19. Ra3 {[%clk 0:24:29]}  Kg7 {[%clk 0:45:46]} 20. Rah3 {[%clk 0:23:44]}  Nc5 {[%clk 0:31:55]} 21. b3 {[%clk 0:19:34]}  Na6 {[%clk 0:23:46]}
22. Bxa6 {[%clk 0:14:57]}  Bxa6 {[%clk 0:24:11]} 23. Bd2 {[%clk 0:14:41]}  Bb6 {[%clk 0:23:23]} 24. Nf2 {[%clk 0:15:00]}  Bxf2+ {[%clk 0:18:29]}
25. Kxf2 {[%clk 0:15:28]}  d4 {[%clk 0:18:47]} 26. Bxa5 {[%clk 0:14:31]}  d3 {[%clk 0:19:14]} 27. b4 {[%clk 0:13:04]}  dxc2 {[%clk 0:16:18]}
28. Rc1 {[%clk 0:12:55]}  Bc4 {[%clk 0:13:46]} 29. Rxc2 {[%clk 0:11:56]}  Bd5 {[%clk 0:14:11]} 30. g4 {[%clk 0:07:24]}  Rb7 {[%clk 0:13:44]}
31. Rcc3 {[%clk 0:06:04]}  Ra8 {[%clk 0:13:19]} 32. Rc5 {[%clk 0:05:57]}  Rd7 {[%clk 0:12:35]} 33. Rd3 {[%clk 0:05:18]}  Raa7 {[%clk 0:12:13]}
34. Ke3 {[%clk 0:05:14]}  h6 {[%clk 0:11:21]} 35. gxh6+ {[%clk 0:04:53]}  Kxh6 {[%clk 0:11:48]} 36. Rc2 {[%clk 0:04:41]}  Kg7 {[%clk 0:11:23]}
37. Rh2 {[%clk 0:02:17]}  Ra8 {[%clk 0:00:38]} 38. f5 {[%clk 0:02:07]}  exf5 {[%clk 0:00:45]} 39. gxf5 {[%clk 0:02:35]}  gxf5 {[%clk 0:00:46]}
40. Kf4 {[%clk 0:02:49]}  Rg8 {[%clk 0:00:45]} 41. b5 {[%clk 0:20:33]}  f6 {[%clk 0:13:46]} 42. Rg3+ {[%clk 0:06:11]}  Kf7 {[%clk 0:13:58]}
43. Rxg8 {[%clk 0:03:22]}  fxe5+ {[%clk 0:12:01]} 44. Kxe5 {[%clk 0:03:50]}  Kxg8 {[%clk 0:12:26]} 45. b6 {[%clk 0:04:01]}  Be4 {[%clk 0:09:07]}
46. Bc3 {[%clk 0:03:50]}  Bd5 {[%clk 0:02:18]} 47. a5 {[%clk 0:01:57]}  Bc4 {[%clk 0:01:42]} 48. Kxf5 {[%clk 0:01:55]}  Ba6 {[%clk 0:02:03]}
49. Ke6 {[%clk 0:02:02]}  Rh7 {[%clk 0:02:09]} 50. Rg2+ {[%clk 0:02:09]} 1-0

[Event "2026 European Womens Championship"]
[Site "Batumi, GE"]
[Date "2026.06.01"]
[Round "7"]
[White "Ivanytska, Liudmyla"]
[Black "Rodshtein, Tereza"]
[Result "1-0"]
[Board "95"]
[TimeControl "5400+30"]
[WhiteFideId "14176211"]
[BlackFideId "325449"]
[WhiteElo "2112"]
[BlackElo "2218"]
[BlackTitle "WGM"]
[WhiteClock "0:55:04"]
[BlackClock "0:14:14"]
[Variant "Standard"]

1. e4 {[%clk 1:30:58]}  e5 {[%clk 1:30:53]} 2. Nf3 {[%clk 1:31:26]}  Nc6 {[%clk 1:31:17]} 3. Bb5 {[%clk 1:31:53]}  a6 {[%clk 1:31:42]}
4. Ba4 {[%clk 1:32:22]}  Nf6 {[%clk 1:32:06]} 5. d3 {[%clk 1:32:49]}  b5 {[%clk 1:32:22]} 6. Bb3 {[%clk 1:33:17]}  Bc5 {[%clk 1:32:29]}
7. O-O {[%clk 1:33:27]}  d6 {[%clk 1:29:10]} 8. c3 {[%clk 1:30:43]}  O-O {[%clk 1:18:25]} 9. h3 {[%clk 1:29:05]}  Bb6 {[%clk 1:09:04]}
10. Re1 {[%clk 1:26:04]}  Be6 {[%clk 1:05:30]} 11. Bc2 {[%clk 1:23:09]}  Ne7 {[%clk 1:02:09]} 12. Nbd2 {[%clk 1:21:07]}  Ng6 {[%clk 1:02:10]}
13. Nf1 {[%clk 1:20:53]}  h6 {[%clk 0:57:21]} 14. d4 {[%clk 1:19:49]}  exd4 {[%clk 0:45:19]} 15. Nxd4 {[%clk 1:12:30]}  Bd7 {[%clk 0:39:13]}
16. Ng3 {[%clk 1:12:05]}  Nh7 {[%clk 0:34:36]} 17. f4 {[%clk 1:10:58]}  Qh4 {[%clk 0:29:51]} 18. Qf3 {[%clk 1:10:27]}  Rae8 {[%clk 0:26:57]}
19. Bd2 {[%clk 1:09:18]}  Ne5 {[%clk 0:23:59]} 20. Qf2 {[%clk 1:05:59]}  Nc4 {[%clk 0:24:11]} 21. Bc1 {[%clk 1:05:38]}  f5 {[%clk 0:16:11]}
22. b3 {[%clk 1:04:04]}  Ne5 {[%clk 0:15:52]} 23. exf5 {[%clk 1:00:10]}  Bxd4 {[%clk 0:13:05]} 24. cxd4 {[%clk 0:57:34]}  Nc6 {[%clk 0:09:46]}
25. Bd2 {[%clk 0:54:47]}  Nxd4 {[%clk 0:13:02]} 26. Qxd4 {[%clk 0:47:59]}  Qxg3 {[%clk 0:13:29]} 27. Ba5 {[%clk 0:45:30]}  Nf6 {[%clk 0:11:27]}
28. Rad1 {[%clk 0:36:41]}  Bc6 {[%clk 0:05:16]} 29. Qf2 {[%clk 0:37:09]}  Qxf2+ {[%clk 0:05:42]} 30. Kxf2 {[%clk 0:37:35]}  Ne4+ {[%clk 0:05:49]}
31. Bxe4 {[%clk 0:37:21]}  Bxe4 {[%clk 0:04:03]} 32. Bxc7 {[%clk 0:35:48]}  d5 {[%clk 0:04:28]} 33. g4 {[%clk 0:35:05]}  Rc8 {[%clk 0:04:53]}
34. Rc1 {[%clk 0:35:15]}  Rf6 {[%clk 0:04:20]} 35. Rc5 {[%clk 0:33:54]}  h5 {[%clk 0:03:29]} 36. Rec1 {[%clk 0:33:43]}  hxg4 {[%clk 0:01:56]}
37. hxg4 {[%clk 0:34:07]}  Rh6 {[%clk 0:01:35]} 38. Kg3 {[%clk 0:31:09]}  Rh1 {[%clk 0:01:20]} 39. R1c3 {[%clk 0:30:00]}  d4 {[%clk 0:01:09]}
40. Be5 {[%clk 0:30:19]}  Rxc5 {[%clk 0:01:18]} 41. Rxc5 {[%clk 0:30:42]}  d3 {[%clk 0:00:37]} 42. Rc8+ {[%clk 0:30:30]}  Kf7 {[%clk 0:27:54]}
43. Bd6 {[%clk 0:56:12]}  Rg1+ {[%clk 0:18:43]} 44. Kh4 {[%clk 0:53:11]}  Rxg4+ {[%clk 0:12:26]} 45. Kxg4 {[%clk 0:53:12]}  Bxf5+ {[%clk 0:12:55]}
46. Kxf5 {[%clk 0:53:39]}  g6+ {[%clk 0:13:22]} 47. Ke5 {[%clk 0:54:07]}  d2 {[%clk 0:13:46]} 48. Rf8+ {[%clk 0:54:35]}  Kg7 {[%clk 0:14:14]}
49. Rd8 {[%clk 0:55:04]} 1-0

[Event "2026 European Womens Championship"]
[Site "Batumi, GE"]
[Date "2026.06.01"]
[Round "7"]
[White "Ibrahimova, Sabina"]
[Black "Tashkinova, Sofiia"]
[Result "1-0"]
[Board "96"]
[TimeControl "5400+30"]
[WhiteFideId "13403893"]
[BlackFideId "14188309"]
[WhiteElo "2205"]
[BlackElo "2085"]
[WhiteTitle "WIM"]
[BlackTitle "WFM"]
[WhiteClock "0:01:45"]
[BlackClock "0:19:47"]
[Variant "Standard"]

1. Nf3 {[%clk 1:27:29]}  Nf6 {[%clk 1:30:46]} 2. c4 {[%clk 1:27:45]}  e6 {[%clk 1:30:39]} 3. g3 {[%clk 1:27:34]}  d5 {[%clk 1:28:15]}
4. d4 {[%clk 1:25:49]}  Bb4+ {[%clk 1:28:37]} 5. Nbd2 {[%clk 1:23:10]}  O-O {[%clk 1:28:30]} 6. Bg2 {[%clk 1:23:22]}  b6 {[%clk 1:26:44]}
7. O-O {[%clk 1:22:05]}  Bb7 {[%clk 1:24:57]} 8. b3 {[%clk 1:14:38]}  Be7 {[%clk 1:20:41]} 9. Bb2 {[%clk 1:13:20]}  c5 {[%clk 1:20:34]}
10. e3 {[%clk 1:12:14]}  Nc6 {[%clk 1:19:33]} 11. Rc1 {[%clk 1:04:40]}  Nb4 {[%clk 1:17:12]} 12. Ra1 {[%clk 1:02:15]}  Nc6 {[%clk 1:15:23]}
13. a3 {[%clk 1:01:53]}  Rc8 {[%clk 1:14:14]} 14. Rc1 {[%clk 1:00:13]}  Qc7 {[%clk 1:13:18]} 15. cxd5 {[%clk 0:50:18]}  Nxd5 {[%clk 1:11:29]}
16. dxc5 {[%clk 0:47:54]}  bxc5 {[%clk 1:11:09]} 17. Ne4 {[%clk 0:45:49]}  Qb6 {[%clk 1:07:08]} 18. Qc2 {[%clk 0:41:08]}  Na5 {[%clk 1:06:16]}
19. Neg5 {[%clk 0:34:55]}  f5 {[%clk 1:02:13]} 20. e4 {[%clk 0:33:35]}  Nc7 {[%clk 0:59:11]} 21. exf5 {[%clk 0:27:28]}  Qxb3 {[%clk 0:49:59]}
22. Qb1 {[%clk 0:15:52]}  exf5 {[%clk 0:37:02]} 23. Nd2 {[%clk 0:13:20]}  Qb6 {[%clk 0:32:05]} 24. Qa2+ {[%clk 0:12:26]}  c4 {[%clk 0:29:11]}
25. Nxc4 {[%clk 0:08:00]}  Qb3 {[%clk 0:25:00]} 26. Qxb3 {[%clk 0:08:11]}  Nxb3 {[%clk 0:25:25]} 27. Bxb7 {[%clk 0:08:20]}  Rb8 {[%clk 0:25:24]}
28. Rcd1 {[%clk 0:03:47]}  Bxg5 {[%clk 0:23:26]} 29. Rd7 {[%clk 0:03:43]}  Rf7 {[%clk 0:23:42]} 30. Rfd1 {[%clk 0:01:01]}  Nc5 {[%clk 0:20:30]}
31. Rxf7 {[%clk 0:01:24]}  Kxf7 {[%clk 0:20:52]} 32. Bf3 {[%clk 0:01:31]}  N7e6 {[%clk 0:19:20]} 33. Be5 {[%clk 0:01:06]}  Rb3 {[%clk 0:16:56]}
34. Be2 {[%clk 0:00:38]}  Bf6 {[%clk 0:14:53]} 35. Bd6 {[%clk 0:00:39]}  Ne4 {[%clk 0:14:35]} 36. Ne5+ {[%clk 0:01:02]}  Bxe5 {[%clk 0:13:25]}
37. Bxe5 {[%clk 0:01:22]}  N4c5 {[%clk 0:13:49]} 38. a4 {[%clk 0:01:05]}  Ra3 {[%clk 0:12:27]} 39. Bb5 {[%clk 0:01:00]}  a6 {[%clk 0:12:01]}
40. Bc6 {[%clk 0:01:19]}  Rd3 {[%clk 0:10:49]} 41. Rb1 {[%clk 0:25:09]}  Rb3 {[%clk 0:39:58]} 42. Rxb3 {[%clk 0:19:33]}  Nxb3 {[%clk 0:40:22]}
43. Bd5 {[%clk 0:18:37]}  Nbc5 {[%clk 0:39:53]} 44. a5 {[%clk 0:17:05]}  g5 {[%clk 0:37:46]} 45. Kf1 {[%clk 0:16:38]}  Ke7 {[%clk 0:37:02]}
46. Bc4 {[%clk 0:15:46]}  Nd8 {[%clk 0:35:37]} 47. Ke2 {[%clk 0:13:31]}  Nc6 {[%clk 0:34:52]} 48. Bc3 {[%clk 0:13:16]}  Nb7 {[%clk 0:31:42]}
49. Bxa6 {[%clk 0:08:15]}  Nbxa5 {[%clk 0:31:51]} 50. Bc8 {[%clk 0:06:56]}  f4 {[%clk 0:27:01]} 51. gxf4 {[%clk 0:06:59]}  gxf4 {[%clk 0:24:44]}
52. Kf3 {[%clk 0:05:24]}  Nc4 {[%clk 0:24:08]} 53. Bf5 {[%clk 0:05:02]}  h6 {[%clk 0:22:35]} 54. Kxf4 {[%clk 0:04:50]}  Kf7 {[%clk 0:22:33]}
55. Bc2 {[%clk 0:02:51]}  Nd6 {[%clk 0:22:23]} 56. Kg4 {[%clk 0:02:35]}  Nb5 {[%clk 0:21:50]} 57. Bd2 {[%clk 0:02:03]}  Ncd4 {[%clk 0:20:13]}
58. Bd3 {[%clk 0:02:01]}  Kg7 {[%clk 0:19:21]} 59. Kh5 {[%clk 0:01:56]}  Nd6 {[%clk 0:19:47]} 60. Bc3 {[%clk 0:01:45]} 1-0

[Event "2026 European Womens Championship"]
[Site "Batumi, GE"]
[Date "2026.06.01"]
[Round "7"]
[White "Tsiganova, Monika"]
[Black "Siekanska, Maria"]
[Result "0-1"]
[Board "97"]
[TimeControl "5400+30"]
[WhiteFideId "4500199"]
[BlackFideId "21852650"]
[WhiteElo "2039"]
[BlackElo "2203"]
[WhiteTitle "WIM"]
[BlackTitle "WIM"]
[WhiteClock "0:28:25"]
[BlackClock "0:34:36"]
[Variant "Standard"]

1. d4 {[%clk 1:30:56]}  d5 {[%clk 1:30:56]} 2. c4 {[%clk 1:31:06]}  c6 {[%clk 1:31:21]} 3. Nc3 {[%clk 1:31:06]}  Nf6 {[%clk 1:31:43]}
4. Nf3 {[%clk 1:30:40]}  e6 {[%clk 1:32:01]} 5. e3 {[%clk 1:30:31]}  Nbd7 {[%clk 1:32:15]} 6. Bd3 {[%clk 1:29:52]}  dxc4 {[%clk 1:32:16]}
7. Bxc4 {[%clk 1:30:08]}  b5 {[%clk 1:32:44]} 8. Bd3 {[%clk 1:30:17]}  Bd6 {[%clk 1:33:05]} 9. O-O {[%clk 1:28:13]}  O-O {[%clk 1:33:30]}
10. Bd2 {[%clk 1:14:23]}  Bb7 {[%clk 1:29:31]} 11. Rc1 {[%clk 1:12:54]}  Rc8 {[%clk 1:28:59]} 12. Ne2 {[%clk 1:08:32]}  Qe7 {[%clk 1:23:31]}
13. Ng3 {[%clk 1:06:23]}  a6 {[%clk 1:05:20]} 14. e4 {[%clk 1:04:33]}  Bxg3 {[%clk 1:04:53]} 15. hxg3 {[%clk 1:04:16]}  c5 {[%clk 1:01:21]}
16. e5 {[%clk 1:03:35]}  Ne4 {[%clk 0:59:16]} 17. Be3 {[%clk 0:38:12]}  c4 {[%clk 0:44:12]} 18. Bb1 {[%clk 0:38:18]}  f5 {[%clk 0:42:33]}
19. exf6 {[%clk 0:37:41]}  Nexf6 {[%clk 0:32:59]} 20. Re1 {[%clk 0:34:38]}  e5 {[%clk 0:23:52]} 21. dxe5 {[%clk 0:24:00]}  Nxe5 {[%clk 0:24:02]}
22. Nxe5 {[%clk 0:19:19]}  Qxe5 {[%clk 0:24:27]} 23. Bf4 {[%clk 0:18:58]}  Qc5 {[%clk 0:22:07]} 24. Qd6 {[%clk 0:16:07]}  Qxd6 {[%clk 0:20:10]}
25. Bxd6 {[%clk 0:16:28]}  Rfd8 {[%clk 0:20:28]} 26. Be7 {[%clk 0:14:36]}  Rd2 {[%clk 0:15:54]} 27. Bxf6 {[%clk 0:08:36]}  gxf6 {[%clk 0:16:17]}
28. Re7 {[%clk 0:08:35]}  Ba8 {[%clk 0:11:49]} 29. Bxh7+ {[%clk 0:08:11]}  Kf8 {[%clk 0:12:16]} 30. Rce1 {[%clk 0:07:51]}  Rxb2 {[%clk 0:10:41]}
31. Bf5 {[%clk 0:07:28]}  Rd8 {[%clk 0:09:06]} 32. Ra7 {[%clk 0:04:19]}  c3 {[%clk 0:06:13]} 33. Ree7 {[%clk 0:04:32]}  Bd5 {[%clk 0:05:55]}
34. Be6 {[%clk 0:03:29]}  Bxe6 {[%clk 0:05:25]} 35. Rxe6 {[%clk 0:03:57]}  Rd1+ {[%clk 0:05:45]} 36. Kh2 {[%clk 0:04:18]}  c2 {[%clk 0:05:43]}
37. Rxf6+ {[%clk 0:03:51]}  Ke8 {[%clk 0:05:53]} 38. Rg6 {[%clk 0:01:35]}  Rd7 {[%clk 0:05:56]} 39. Ra8+ {[%clk 0:01:45]}  Kf7 {[%clk 0:05:33]}
40. Rc6 {[%clk 0:01:55]}  Rxa2 {[%clk 0:04:30]} 41. Rac8 {[%clk 0:02:18]}  b4 {[%clk 0:04:10]} 42. Rxc2 {[%clk 0:02:21]}  Rxc2 {[%clk 0:04:29]}
43. Rxc2 {[%clk 0:02:47]}  b3 {[%clk 0:04:16]} 44. Rc6 {[%clk 0:28:25]}  Rb7 {[%clk 0:34:36]} 0-1